bitfinex/quotes_BTCUSD_20250709
["timestamp","ask_amount","ask_price","bid_price","bid_amount"]
[1752096479142,0.17051546,111290.0,111280.0,0.66985152]
[1752096479380,0.16851546,111290.0,111280.0,0.66985152]
[1752096479700,0.16851546,111290.0,111280.0,0.72347314]
[1752096479937,0.16551546,111290.0,111280.0,0.72347314]
[1752096480409,0.7833307,111290.0,111280.0,0.01677681]
[1752096480646,0.78107775,111290.0,111280.0,0.01677681]
[1752096480874,0.47557825,111290.0,111280.0,0.01677681]
[1752096481166,0.33701825,111290.0,111280.0,0.01677681]
[1752096481411,0.002,111290.0,111280.0,0.58982952]
[1752096481637,0.002,111290.0,111280.0,1.19227579]
[1752096481638,0.12976931,111290.0,111280.0,1.19227579]
[1752096481858,0.12976931,111290.0,111280.0,1.11188037]
[1752096482316,0.12100322,111290.0,111280.0,1.11830044]
[1752096482581,0.12100322,111290.0,111280.0,1.22535575]
[1752096482788,0.12100322,111290.0,111280.0,1.22635575]
[1752096483151,0.12100322,111290.0,111280.0,1.22535575]
[1752096483360,0.12100322,111290.0,111280.0,1.22635575]
[1752096483682,0.4101213,111290.0,111280.0,0.315039]
[1752096483841,0.41910643,111290.0,111280.0,0.63417037]
[1752096484221,0.41012147,111290.0,111280.0,0.61041811]
[1752096484578,0.41012147,111290.0,111280.0,0.69965059]
[1752096484876,0.25148699,111300.0,111290.0,0.18869603]
[1752096485094,0.36089312,111300.0,111290.0,0.52634351]
[1752096485309,0.49941312,111300.0,111290.0,0.52634351]
[1752096485948,0.49941312,111300.0,111290.0,0.22982913]
[1752096486188,0.49941312,111300.0,111290.0,0.23082913]
[1752096486625,0.49941312,111300.0,111290.0,0.28833729]
[1752096486848,0.49941312,111300.0,111290.0,0.23480913]
[1752096487067,0.49941312,111300.0,111290.0,0.28833729]
[1752096487273,0.49941312,111300.0,111290.0,0.29732233]
[1752096487444,0.49841312,111300.0,111290.0,0.29732233]
[1752096487646,0.49841312,111300.0,111290.0,0.28833729]
[1752096488085,0.49841312,111300.0,111290.0,0.23480913]
[1752096488604,0.49841137,111300.0,111290.0,0.21806643]
[1752096488817,0.49841137,111300.0,111290.0,0.28811896]
[1752096489032,0.49841137,111300.0,111290.0,0.59361846]
[1752096489406,0.49841137,111300.0,111290.0,0.5400903]
[1752096489759,0.32770102,111300.0,111290.0,0.54907534]
[1752096489980,0.51638025,111300.0,111290.0,0.54907534]
[1752096490346,0.51638025,111300.0,111290.0,0.59361846]
[1752096490543,0.50739601,111300.0,111290.0,0.58463334]
[1752096490748,0.50739601,111300.0,111290.0,0.53110518]
[1752096491802,0.50739601,111300.0,111290.0,0.5400903]
[1752096492017,0.50739601,111300.0,111290.0,0.52211997]
[1752096492436,0.50739601,111300.0,111290.0,0.53110526]
[1752096492637,0.50739601,111300.0,111290.0,0.54009047]
[1752096493251,0.49841153,111300.0,111290.0,0.52211997]
[1752096493758,0.49841153,111300.0,111290.0,0.53110526]
[1752096494163,0.49841153,111300.0,111290.0,0.59361863]
[1752096494361,0.49841153,111300.0,111290.0,0.59361514]
[1752096494584,0.49841153,111300.0,111290.0,0.58462981]
[1752096494747,0.49841153,111300.0,111290.0,0.53110165]
[1752096495746,0.49841073,111300.0,111290.0,0.54008686]
[1752096495945,0.51637993,111300.0,111290.0,0.59361502]
[1752096496180,0.51637993,111300.0,111290.0,0.54008686]
[1752096496356,0.51637993,111300.0,111290.0,0.59361502]
[1752096496569,0.51637993,111300.0,111290.0,0.54008686]
[1752096497021,0.51637993,111300.0,111290.0,0.6026004]
[1752096497197,0.51637993,111300.0,111290.0,0.59361528]
[1752096497358,0.50739577,111300.0,111290.0,0.59361528]
[1752096497566,0.50739577,111300.0,111290.0,0.60259519]
[1752096498329,0.50739577,111300.0,111290.0,0.59361007]
[1752096498610,0.50739577,111300.0,111290.0,0.60259519]
[1752096499430,0.50739577,111300.0,111290.0,0.28811057]
[1752096499634,0.50739577,111300.0,111290.0,0.59361007]
[1752096501508,0.50739577,111300.0,111290.0,0.58587797]
[1752096501957,0.50739577,111300.0,111290.0,0.57067419]
[1752096502762,0.50739577,111300.0,111290.0,0.57965931]
[1752096503567,0.50739577,111300.0,111290.0,0.57067419]
[1752096504168,0.50739577,111300.0,111290.0,0.56168898]
[1752096504573,0.50739577,111300.0,111290.0,0.6419694]
[1752096504770,0.50739577,111300.0,111290.0,0.65095461]
[1752096505601,0.49841137,111300.0,111290.0,0.6419694]
[1752096506098,0.49841137,111300.0,111290.0,0.65095461]
[1752096506354,0.30973214,111300.0,111290.0,0.65095461]
[1752096506518,0.32770102,111300.0,111290.0,0.60641149]
[1752096506847,0.51638025,111300.0,111290.0,0.65103948]
[1752096507148,0.51638025,111300.0,111290.0,0.60641157]
[1752096507865,0.51638025,111300.0,111290.0,0.59742645]
[1752096508432,0.50739601,111300.0,111290.0,0.58844124]
[1752096509146,0.25691037,111300.0,111290.0,0.62212636]
[1752096509348,0.25691021,111300.0,111290.0,0.64310636]
[1752096509820,0.26589485,111300.0,111290.0,0.6341214]
[1752096509956,0.45457408,111300.0,111290.0,0.62513636]
[1752096510152,0.43682341,111300.0,111290.0,0.63126368]
[1752096510352,0.2571289,111300.0,111290.0,0.6402488]
[1752096510560,0.43682341,111300.0,111290.0,0.64923384]
[1752096510791,0.24814418,111300.0,111290.0,0.64923384]
[1752096510935,0.24814418,111300.0,111290.0,0.66599296]
[1752096511139,0.2571289,111300.0,111290.0,0.66599296]
[1752096511396,0.43682341,111300.0,111290.0,0.65700792]
[1752096511592,0.43682341,111300.0,111290.0,0.63230792]
[1752096512819,0.43682341,111300.0,111290.0,0.64129296]
[1752096513226,0.43682341,111300.0,111290.0,0.6233228]
[1752096513831,0.43682341,111300.0,111290.0,0.62313769]
[1752096514072,0.24814418,111300.0,111290.0,0.63212281]
[1752096514268,0.24814418,111300.0,111290.0,0.64110777]
[1752096514444,0.2571289,111300.0,111290.0,0.63212281]
[1752096515014,0.2571289,111300.0,111290.0,0.64110785]
[1752096515414,0.43682341,111300.0,111290.0,0.63212281]
[1752096518127,0.41885437,111300.0,111290.0,0.6141528]
[1752096518353,0.41885437,111300.0,111290.0,0.62313809]
[1752096518545,0.41885437,111300.0,111290.0,0.6321233]
[1752096518901,0.41885437,111300.0,111290.0,0.64110842]
[1752096519561,0.41885437,111300.0,111290.0,0.6321233]
[1752096519902,0.41885437,111300.0,111290.0,0.64110842]
[1752096520103,0.33618387,111300.0,111290.0,0.64110842]
[1752096520346,0.33618387,111300.0,111290.0,0.6321233]
[1752096521674,0.33618387,111300.0,111290.0,0.62313809]
[1752096522602,0.33618387,111300.0,111290.0,0.62314281]
[1752096523393,0.32719923,111300.0,111290.0,0.61415752]
[1752096523591,0.32719923,111300.0,111290.0,0.62314289]
[1752096524413,0.32719923,111300.0,111290.0,0.63212818]
[1752096524999,0.32719923,111300.0,111290.0,0.64111339]
[1752096525566,0.33618371,111300.0,111290.0,0.64111339]
[1752096525710,0.33618371,111300.0,111290.0,0.6411129]
[1752096526323,0.33618371,111300.0,111290.0,0.64111298]
[1752096526525,0.33618371,111300.0,111290.0,0.64136005]
[1752096528230,0.33618371,111300.0,111290.0,0.64137395]
[1752096529416,0.33618371,111300.0,111290.0,0.63238891]
[1752096529791,0.33618371,111300.0,111290.0,0.64137395]
[1752096530214,0.32741732,111300.0,111290.0,0.64137395]
[1752096531186,0.32741732,111300.0,111290.0,0.62321385]
[1752096531404,0.32741732,111300.0,111290.0,0.62644556]
[1752096531621,0.09772281,111300.0,111290.0,0.6354306]
[1752096532213,0.27741732,111300.0,111290.0,0.6354306]
[1752096532769,0.09772281,111300.0,111290.0,0.6354306]
[1752096533219,0.27741732,111300.0,111290.0,0.6354306]
[1752096534243,0.27741732,111300.0,111290.0,0.63542981]
[1752096534769,0.09772281,111300.0,111290.0,0.63542981]
[1752096534990,0.09772281,111300.0,111290.0,0.6352524]
[1752096535200,0.10675697,111300.0,111290.0,0.6323224]
[1752096535614,0.11574169,111300.0,111290.0,0.6323224]
[1752096535832,0.10675697,111300.0,111290.0,0.6323224]
[1752096536044,0.09777233,111300.0,111290.0,0.63232199]
[1752096536246,0.10675697,111300.0,111290.0,0.63232199]
[1752096536660,0.09772233,111300.0,111290.0,0.63232199]
[1752096536862,0.10675689,111300.0,111290.0,0.63232199]
[1752096537067,0.10675689,111300.0,111290.0,0.63232313]
[1752096537472,0.11574153,111300.0,111290.0,0.63232313]
[1752096537680,0.10675689,111300.0,111290.0,0.63232313]
[1752096537885,0.11574153,111300.0,111290.0,0.63232313]
[1752096538823,0.10675689,111300.0,111290.0,0.63232313]
[1752096539254,0.09777233,111300.0,111290.0,0.63232313]
[1752096540322,0.11574161,111300.0,111290.0,0.61136313]
[1752096540665,0.10675689,111300.0,111290.0,0.61136313]
[1752096540877,0.10675689,111300.0,111290.0,0.62034817]
[1752096541101,0.10675689,111300.0,111290.0,0.62337817]
[1752096541317,0.09777233,111300.0,111290.0,0.62337817]
[1752096541548,0.09777233,111300.0,111290.0,0.65596313]
[1752096541778,0.09777233,111300.0,111290.0,0.56645068]
[1752096542019,0.09777233,111300.0,111290.0,0.54285068]
[1752096542020,0.10675697,111300.0,111290.0,0.54285068]
[1752096543372,0.10675697,111300.0,111290.0,0.53386564]
[1752096543588,0.11574169,111300.0,111290.0,0.53386564]
[1752096544631,0.10675697,111300.0,111290.0,0.53386564]
[1752096545056,0.28645148,111300.0,111290.0,0.52185084]
[1752096545221,0.28645148,111300.0,111290.0,0.53083605]
[1752096545639,0.28645148,111300.0,111290.0,0.53386605]
[1752096545970,0.28645148,111300.0,111290.0,0.54285117]
[1752096546847,0.28645148,111300.0,111290.0,0.53386605]
[1752096547045,0.28645148,111300.0,111290.0,0.54285117]
[1752096547284,0.28645148,111300.0,111290.0,0.52488084]
[1752096547488,0.2954362,111300.0,111290.0,0.60539942]
[1752096547665,0.2954362,111300.0,111290.0,0.61438463]
[1752096547864,0.2954362,111300.0,111290.0,0.60539942]
[1752096548275,0.2954362,111300.0,111290.0,0.59641413]
[1752096548478,0.28645196,111300.0,111290.0,0.6053995]
[1752096549065,0.28645196,111300.0,111290.0,0.59641413]
[1752096549282,0.28645196,111300.0,111290.0,0.61438495]
[1752096549857,0.27746748,111300.0,111290.0,0.61438495]
[1752096550672,0.27746748,111300.0,111290.0,0.62337024]
[1752096553103,0.27746748,111300.0,111290.0,0.60539958]
[1752096553335,0.27746748,111300.0,111290.0,0.61438495]
[1752096553552,0.27746748,111300.0,111290.0,0.30007749]
[1752096553706,0.27746748,111300.0,111290.0,0.60539958]
[1752096554671,0.26848284,111300.0,111290.0,0.60539958]
[1752096555307,0.26848284,111300.0,111290.0,0.60236958]
[1752096556204,0.26848284,111300.0,111290.0,0.60531958]
[1752096556429,0.26848284,111300.0,111290.0,0.61430495]
[1752096557242,0.26848284,111300.0,111290.0,0.5873486]
[1752096557540,0.26848284,111300.0,111290.0,0.40468794]
[1752096558305,0.26848284,111300.0,111290.0,0.5843986]
[1752096558620,0.26848284,111300.0,111290.0,0.40468794]
[1752096559446,0.26848284,111300.0,111290.0,0.59338413]
[1752096559655,0.25949812,111300.0,111290.0,0.5873486]
[1752096562729,0.25949812,111300.0,111290.0,0.5843986]
[1752096566998,0.25949812,111300.0,111290.0,0.5844686]
[1752096567392,0.25949812,111300.0,111290.0,0.40475794]
[1752096568916,0.25949812,111300.0,111290.0,0.5844686]
[1752096569812,0.25949812,111300.0,111290.0,0.59345413]
[1752096570014,0.25949812,111300.0,111290.0,0.5844686]
[1752096571811,0.25949812,111300.0,111290.0,0.27914651]
[1752096571993,0.25949812,111300.0,111290.0,0.5844686]
[1752096572694,0.25949812,111300.0,111290.0,0.5874186]
[1752096573679,0.25949812,111300.0,111290.0,0.5844686]
[1752096574080,0.25949812,111300.0,111290.0,0.56769133]
[1752096574300,0.25949812,111300.0,111290.0,0.58446646]
[1752096574521,0.46992578,111300.0,111290.0,0.09729371]
[1752096574760,0.46115889,111300.0,111290.0,0.15648604]
[1752096575207,0.46115889,111300.0,111290.0,0.45630391]
[1752096575646,0.46115889,111300.0,111290.0,0.45630867]
[1752096575868,0.46115889,111300.0,111290.0,0.37579009]
[1752096576094,0.46115889,111300.0,111290.0,0.45630867]
[1752096577421,0.46115889,111300.0,111290.0,0.37579009]
[1752096577637,0.46115889,111300.0,111290.0,0.070468]
[1752096577867,0.46115889,111300.0,111290.0,0.15098658]
[1752096580289,0.46115889,111300.0,111290.0,0.15098316]
[1752096581418,0.52817217,111300.0,111290.0,0.15098316]
[1752096582287,0.52817217,111300.0,111290.0,0.45630525]
[1752096584897,0.45638144,111300.0,111290.0,0.45630525]
[1752096585340,0.43368144,111300.0,111290.0,0.45630525]
[1752096586040,0.45668144,111300.0,111290.0,0.45630941]
[1752096588979,0.45668144,111300.0,111290.0,0.45631803]
[1752096589550,0.43368144,111300.0,111290.0,0.45631803]
[1752096590009,0.01796823,111300.0,111290.0,1.0293616]
[1752096590225,0.14694399,111300.0,111290.0,1.0293616]
[1752096590431,0.15592807,111300.0,111290.0,0.97567349]
[1752096590605,0.16491239,111300.0,111290.0,0.97567349]
[1752096590825,0.16491239,111300.0,111290.0,0.36502931]
[1752096591020,0.16491239,111300.0,111290.0,0.6703514]
[1752096591162,0.16491231,111300.0,111290.0,0.6703514]
[1752096592508,0.51430446,111320.0,111310.0,0.21753228]
[1752096592509,0.2158,111320.0,111310.0,0.21753228]
[1752096592701,0.23376524,111320.0,111310.0,1.02939282]
[1752096592892,0.22478254,111320.0,111310.0,1.02939282]
[1752096593138,0.37168524,111320.0,111310.0,0.58979423]
[1752096593313,0.37168524,111320.0,111310.0,0.67026063]
[1752096593717,0.37473204,111320.0,111310.0,0.67026063]
[1752096593917,0.3837149,111320.0,111310.0,0.67026063]
[1752096594124,0.39469793,111320.0,111310.0,0.66127728]
[1752096594355,0.23881204,111320.0,111310.0,0.98456623]
[1752096594556,0.22982926,111320.0,111310.0,0.98456623]
[1752096594761,0.3767318,111320.0,111310.0,0.98456623]
[1752096595162,0.2388118,111320.0,111310.0,0.98456623]
[1752096595363,0.1399668,111320.0,111310.0,0.99910708]
[1752096595590,0.1379668,111320.0,111310.0,0.99910708]
[1752096595797,0.1399668,111320.0,111310.0,0.99910708]
[1752096596164,0.0020468,111320.0,111310.0,1.02569599]
[1752096596363,0.1399668,111320.0,111310.0,1.02569599]
[1752096596574,0.1379668,111320.0,111310.0,1.02569599]
[1752096596977,0.1389668,111320.0,111310.0,1.02569599]
[1752096597382,0.1379668,111320.0,111310.0,1.02569599]
[1752096597614,0.13787359,111320.0,111310.0,1.02569599]
[1752096597851,0.13787359,111320.0,111310.0,0.41505181]
[1752096598070,0.08077182,111340.0,111320.0,0.52864477]
[1752096598227,0.10776207,111340.0,111330.0,0.25389203]
[1752096598394,0.24608207,111340.0,111330.0,0.57600337]
[1752096598609,0.24612207,111340.0,111330.0,0.57600337]
[1752096598810,0.43473352,111340.0,111330.0,0.61558274]
[1752096599254,0.25810356,111340.0,111330.0,0.56208535]
[1752096599468,0.25810356,111340.0,111330.0,0.57106709]
[1752096600111,0.42875267,111340.0,111330.0,0.55310353]
[1752096600556,0.42875267,111340.0,111330.0,0.56197296]
[1752096600764,0.43075267,111340.0,111330.0,0.57095478]
[1752096600971,0.42177118,111340.0,111330.0,0.60283652]
[1752096601196,0.43075267,111340.0,111330.0,0.59385478]
[1752096601396,0.43075267,111340.0,111330.0,0.59014296]
[1752096601850,0.42177158,111340.0,111330.0,0.59014296]
[1752096602076,0.42177158,111340.0,111330.0,0.57217908]
[1752096602287,0.41279041,111340.0,111330.0,0.56724328]
[1752096602527,0.41279041,111340.0,111330.0,0.57622526]
[1752096602743,0.41279041,111340.0,111330.0,0.56724328]
[1752096602956,0.403809,111340.0,111330.0,0.56724328]
[1752096603177,0.403809,111340.0,111330.0,0.26192119]
[1752096603399,0.403809,111340.0,111330.0,0.56724328]
[1752096603611,0.39482751,111340.0,111330.0,0.54927908]
[1752096603842,0.39482751,111340.0,111330.0,0.52170908]
[1752096604095,0.39482751,111340.0,111330.0,0.54787908]
[1752096605353,0.39482751,111340.0,111330.0,0.53889686]
[1752096605571,0.39482751,111340.0,111330.0,0.53879603]
[1752096606252,0.39482751,111340.0,111330.0,0.35914994]
[1752096606825,0.39482751,111340.0,111330.0,0.01878842]
[1752096607040,1.22448679,111340.0,111330.0,0.01668842]
[1752096607263,1.14345862,111340.0,111330.0,0.01668842]
[1752096607633,0.83813653,111340.0,111330.0,0.01668842]
[1752096611331,0.19762788,111320.0,111310.0,0.65639649]
[1752096611528,0.42710481,111320.0,111310.0,0.69610062]
[1752096612140,0.42715481,111320.0,111310.0,0.69610062]
[1752096612514,0.42715481,111320.0,111310.0,0.69710062]
[1752096614857,0.47295481,111320.0,111310.0,0.01770413]
[1752096615295,0.7782769,111320.0,111310.0,0.01770413]
[1752096616874,0.77826264,111320.0,111310.0,0.01770413]
[1752096617954,0.78710332,111320.0,111310.0,0.01670413]
[1752096618175,0.85889405,111320.0,111310.0,0.01670413]
[1752096618388,0.86089405,111320.0,111310.0,0.01670413]
[1752096618601,0.86389405,111320.0,111310.0,0.01670413]
[1752096619777,0.19768115,111290.0,111280.0,0.80624131]
[1752096619992,0.42703808,111290.0,111280.0,0.82297706]
[1752096621084,0.42703808,111290.0,111280.0,0.82302386]
[1752096621312,0.47288808,111290.0,111280.0,0.15052603]
[1752096621535,0.47288808,111290.0,111280.0,0.07757811]
[1752096621761,0.47288808,111290.0,111280.0,0.02408072]
[1752096622010,0.47288808,111290.0,111280.0,0.07757811]
[1752096622602,0.47288808,111290.0,111280.0,0.02408072]
[1752096624022,0.47288808,111290.0,111280.0,0.02407446]
[1752096624383,0.47288808,111290.0,111280.0,0.02607446]
[1752096624958,0.47288808,111290.0,111280.0,0.02407446]
[1752096625317,0.47388808,111290.0,111280.0,0.02407446]
[1752096627356,0.47388808,111290.0,111280.0,0.02207446]
[1752096629298,0.47588808,111290.0,111280.0,0.02207446]
[1752096629722,0.47588808,111290.0,111280.0,0.00534497]
[1752096629942,0.47588808,111290.0,111280.0,0.0220523]
[1752096632857,0.47588808,111290.0,111280.0,0.02204395]
[1752096636916,0.78134048,111290.0,111280.0,0.02204395]
[1752096638795,0.78138774,111290.0,111280.0,0.02204395]
[1752096640279,0.7902333,111290.0,111280.0,0.02204395]
[1752096646636,0.88167023,111290.0,111280.0,0.02204395]
[1752096646810,0.7902333,111290.0,111280.0,0.02204395]
[1752096647397,0.7902333,111290.0,111280.0,0.02210818]
[1752096648004,0.19778446,111260.0,111250.0,0.05389739]
[1752096648203,0.42714139,111260.0,111250.0,0.05436619]
[1752096648961,0.41815384,111260.0,111250.0,0.05436619]
[1752096649141,0.78004105,111260.0,111250.0,0.05436619]
[1752096649362,0.78004105,111260.0,111250.0,0.0008688]
[1752096649850,0.78004105,111260.0,111250.0,0.0028688]
[1752096650303,0.78004105,111260.0,111250.0,0.0058688]
[1752096651542,0.78004105,111260.0,111250.0,0.0028688]
[1752096651734,0.78004105,111260.0,111250.0,0.0008688]
[1752096651918,0.78104105,111260.0,111250.0,0.0008688]
[1752096653197,0.78304105,111260.0,111250.0,0.0008688]
[1752096653802,0.78299105,111260.0,111250.0,0.0008688]
[1752096654039,0.78304105,111260.0,111250.0,0.0008688]
[1752096654814,0.84936101,111260.0,111250.0,0.0008688]
[1752096655035,1.18936101,111260.0,111250.0,0.0008688]
[1752096655647,1.20390186,111260.0,111250.0,0.0008688]
[1752096656216,1.20390186,111260.0,111250.0,1e-08]
[1752096656818,1.1375819,111260.0,111250.0,1e-08]
[1752096658267,0.18881388,111250.0,111240.0,0.0053554]
[1752096658467,1.41661013,111250.0,111240.0,0.00549596]
[1752096659135,1.43115098,111250.0,111240.0,0.00549596]
[1752096659679,1.12665132,111250.0,111240.0,0.00549596]
[1752096660079,1.12660132,111250.0,111240.0,0.0272279]
[1752096660283,1.12665132,111250.0,111240.0,0.0272279]
[1752096660696,1.43215098,111250.0,111240.0,0.0272279]
[1752096661005,1.43115098,111250.0,111240.0,0.0272279]
[1752096661201,1.43515098,111250.0,111240.0,0.02722809]
[1752096662000,1.12965132,111250.0,111240.0,0.02722809]
[1752096662675,1.43515098,111250.0,111240.0,0.02722809]
[1752096663189,1.12965132,111250.0,111240.0,0.02722809]
[1752096663390,1.15629924,111250.0,111240.0,0.02722809]
[1752096664049,1.15629924,111250.0,111240.0,0.02222874]
[1752096664368,1.15929924,111250.0,111240.0,0.02722023]
[1752096664932,0.18883085,111240.0,111230.0,0.0004]
[1752096665101,1.2925471,111240.0,111230.0,0.00052595]
[1752096665715,1.6325471,111240.0,111230.0,0.00052595]
[1752096666143,1.6345471,111240.0,111230.0,0.00052595]
[1752096666364,1.6365471,111240.0,111230.0,0.00052595]
[1752096666888,1.65108795,111240.0,111230.0,0.00052595]
[1752096667290,1.65108795,111240.0,111230.0,1e-08]
[1752096669698,0.19785557,111220.0,111210.0,0.0004]
[1752096669934,0.18888177,111210.0,111200.0,0.0281554]
[1752096670140,0.18884875,111200.0,111190.0,0.0275]
[1752096670355,0.7147527,111200.0,111190.0,0.0275]
[1752096670562,0.72374534,111200.0,111190.0,0.0275]
[1752096672145,0.18886574,111190.0,111180.0,0.0279]
[1752096672396,0.41826267,111190.0,111180.0,0.0279]
[1752096673079,0.72376233,111190.0,111180.0,0.0279]
[1752096673301,0.72376233,111190.0,111180.0,0.0502]
[1752096673525,0.72381233,111190.0,111180.0,0.0227]
[1752096673803,0.18893272,111180.0,111170.0,0.0004]
[1752096674021,0.63427965,111180.0,111170.0,0.0502]
[1752096674502,0.28031965,111180.0,111170.0,0.0502]
[1752096674746,0.138,111180.0,111170.0,0.56483782]
[1752096674976,0.00899377,111180.0,111170.0,0.56258894]
[1752096675167,0.00904215,111200.0,111190.0,0.25135207]
[1752096675373,0.36290849,111200.0,111190.0,0.5568519]
[1752096675588,0.20688411,111200.0,111190.0,0.54785877]
[1752096675763,0.34496411,111200.0,111190.0,0.55685206]
[1752096676111,0.20688411,111200.0,111190.0,0.55685206]
[1752096676335,0.20688411,111200.0,111190.0,0.56584527]
[1752096676535,0.34496411,111200.0,111190.0,0.56584527]
[1752096676747,0.34496411,111200.0,111190.0,0.55685206]
[1752096676971,0.34496411,111200.0,111190.0,0.57834088]
[1752096677250,0.15611471,111200.0,111190.0,0.58733392]
[1752096677368,0.50814112,111200.0,111190.0,0.06805882]
[1752096677592,0.49914889,111200.0,111190.0,0.07128882]
[1752096678029,0.28927816,111200.0,111190.0,0.5656543]
[1752096678236,0.42735816,111200.0,111190.0,0.5666543]
[1752096678466,0.42735816,111200.0,111190.0,0.56667024]
[1752096678639,0.42735816,111200.0,111190.0,0.56567024]
[1752096679062,0.00899223,111200.0,111190.0,0.56037024]
[1752096679225,0.4675745,111220.0,111210.0,0.0481]
[1752096679394,0.69705143,111220.0,111210.0,0.38040442]
[1752096679595,0.55901143,111220.0,111210.0,0.38040442]
[1752096679800,0.69705143,111220.0,111210.0,0.07490476]
[1752096680229,0.69705143,111220.0,111210.0,0.56923627]
[1752096680423,0.55901143,111220.0,111210.0,0.56937693]
[1752096680630,0.34305143,111220.0,111210.0,0.57836868]
[1752096680836,0.34305143,111220.0,111210.0,0.58736035]
[1752096680837,0.28025188,111220.0,111210.0,0.58736035]
[1752096681045,0.4272429,111220.0,111210.0,0.5963824]
[1752096681246,0.43623368,111220.0,111210.0,0.60537399]
[1752096681454,0.29823368,111220.0,111210.0,0.60537399]
[1752096681681,0.43723368,111220.0,111210.0,0.60537399]
[1752096681895,0.43723368,111220.0,111210.0,0.5963824]
[1752096682308,0.43823368,111220.0,111210.0,0.5963824]
[1752096683088,0.30023368,111220.0,111210.0,0.5963824]
[1752096683287,0.43831368,111220.0,111210.0,0.5963824]
[1752096683492,0.4293229,111220.0,111210.0,0.58739073]
[1752096683669,0.4293229,111220.0,111210.0,0.58416073]
[1752096684029,0.42033188,111220.0,111210.0,0.58739081]
[1752096684180,0.41155911,111220.0,111210.0,0.59638256]
[1752096684384,0.41155911,111220.0,111210.0,0.60537423]
[1752096684766,0.41155911,111220.0,111210.0,0.58862546]
[1752096685280,0.41151911,111220.0,111210.0,0.58862546]
[1752096685886,0.41151911,111220.0,111210.0,0.57963371]
[1752096686103,0.41151911,111220.0,111210.0,0.57064204]
[1752096688098,0.41151911,111220.0,111210.0,0.25612033]
[1752096688533,0.41151911,111220.0,111210.0,0.26511208]
[1752096689145,0.41151911,111220.0,111210.0,0.25612033]
[1752096689518,0.41151911,111220.0,111210.0,0.56161999]
[1752096690456,0.41151911,111220.0,111210.0,0.57039375]
[1752096691471,0.77986832,111220.0,111210.0,0.00489665]
[1752096694675,0.77986832,111220.0,111210.0,0.02167533]
[1752096694900,0.09343693,111220.0,111210.0,0.38067499]
[1752096695157,0.42043004,111220.0,111210.0,0.56051493]
[1752096695336,0.42043004,111220.0,111210.0,0.56950692]
[1752096695701,0.42043004,111220.0,111210.0,0.26400726]
[1752096695907,0.42043004,111220.0,111210.0,0.27299917]
[1752096696159,0.42043004,111220.0,111210.0,0.56900594]
[1752096696399,0.41143918,111220.0,111210.0,0.08366634]
[1752096698659,0.41143918,111220.0,111210.0,0.07467435]
[1752096699036,0.41143918,111220.0,111210.0,0.07467299]
[1752096699698,0.41143918,111220.0,111210.0,0.26350492]
[1752096699915,0.41143918,111220.0,111210.0,0.25572488]
[1752096700975,0.41143918,111220.0,111210.0,0.05790104]
[1752096701394,0.41143918,111220.0,111210.0,0.23774098]
[1752096701905,0.41143918,111220.0,111210.0,0.24673289]
[1752096702101,0.41143918,111220.0,111210.0,0.24673353]
[1752096702957,0.41143918,111220.0,111210.0,0.23774162]
[1752096703157,0.40244808,111220.0,111210.0,0.23774162]
[1752096703360,0.40244808,111220.0,111210.0,0.05790168]
[1752096703579,0.70799774,111220.0,111210.0,0.00440168]
[1752096704002,0.73169774,111220.0,111210.0,0.00440168]
[1752096705161,0.75429774,111220.0,111210.0,0.00440168]
[1752096705773,0.73169774,111220.0,111210.0,0.00440168]
[1752096705998,0.73069774,111220.0,111210.0,0.00440168]
[1752096706190,0.73269774,111220.0,111210.0,0.00440168]
[1752096706796,0.73169774,111220.0,111210.0,0.00440168]
[1752096707705,0.72969774,111220.0,111210.0,0.00440168]
[1752096707956,0.73069774,111220.0,111210.0,0.00440168]
[1752096708154,0.73169774,111220.0,111210.0,0.00440168]
[1752096710947,0.73169774,111220.0,111210.0,0.02121685]
[1752096711178,0.70799774,111220.0,111210.0,0.02121685]
[1752096712940,0.73219774,111220.0,111210.0,0.02121685]
[1752096713507,0.73219774,111220.0,111210.0,0.02103017]
[1752096714275,0.70799774,111220.0,111210.0,0.02103017]
[1752096714457,0.40249808,111220.0,111210.0,0.02103017]
[1752096714658,0.70799774,111220.0,111210.0,0.02103017]
[1752096716404,0.70799774,111220.0,111210.0,0.02102957]
[1752096717146,0.73219774,111220.0,111210.0,0.02102957]
[1752096718181,0.42669808,111220.0,111210.0,0.02102957]
[1752096718383,0.73219774,111220.0,111210.0,0.02102957]
[1752096718806,0.42669808,111220.0,111210.0,0.02102957]
[1752096719007,0.73219774,111220.0,111210.0,0.02102957]
[1752096719560,0.70799774,111220.0,111210.0,0.02102957]
[1752096721852,0.75469774,111220.0,111210.0,0.02102957]
[1752096722289,0.75469774,111220.0,111210.0,0.02103049]
[1752096726803,0.73249774,111220.0,111210.0,0.02103049]
[1752096727004,0.75469774,111220.0,111210.0,0.02103049]
[1752096727248,0.73249774,111220.0,111210.0,0.02103084]
[1752096727621,0.70799774,111220.0,111210.0,0.02103084]
[1752096735429,0.70799774,111220.0,111210.0,0.04363447]
[1752096735859,0.70799774,111220.0,111210.0,0.02103447]
[1752096736396,0.70799774,111220.0,111210.0,0.04363447]
[1752096736530,0.70799774,111220.0,111210.0,0.02103447]
[1752096736950,0.70799774,111220.0,111210.0,0.04363447]
[1752096738296,0.73079774,111220.0,111210.0,0.02103447]
[1752096738618,0.70799774,111220.0,111210.0,0.02103447]
[1752096739688,0.70799774,111220.0,111210.0,0.04363447]
[1752096740280,0.70799774,111220.0,111210.0,0.02103447]
[1752096740682,0.92399774,111220.0,111210.0,0.02103447]
[1752096742438,0.92399774,111220.0,111210.0,0.04363447]
[1752096742882,0.64129808,111220.0,111210.0,0.02103447]
[1752096743033,0.92399774,111220.0,111210.0,0.02103447]
[1752096743580,0.92399774,111220.0,111210.0,0.04363447]
[1752096747378,0.92399774,111220.0,111210.0,0.02103447]
[1752096747797,0.92399774,111220.0,111210.0,0.04423447]
[1752096748251,0.61849808,111220.0,111210.0,0.04423447]
[1752096748633,0.92399774,111220.0,111210.0,0.04423447]
[1752096748837,0.61849808,111220.0,111210.0,0.04423447]
[1752096749042,0.92399774,111220.0,111210.0,0.04423447]
[1752096750141,0.92399774,111220.0,111210.0,0.02103447]
[1752096750725,0.92399774,111220.0,111210.0,0.04263447]
[1752096750949,1.23037866,111220.0,111210.0,0.04263447]
[1752096751615,1.23037866,111220.0,111210.0,0.02103447]
[1752096752284,1.23037866,111220.0,111210.0,0.04263447]
[1752096752692,1.23029866,111220.0,111210.0,0.04263447]
[1752096754833,1.23029866,111220.0,111210.0,0.02103447]
[1752096756298,1.23029866,111220.0,111210.0,0.04333447]
[1752096756567,1.23029866,111220.0,111210.0,0.04329146]
[1752096757230,1.23029866,111220.0,111210.0,0.02099146]
[1752096759756,1.23029866,111220.0,111210.0,0.04329146]
[1752096761167,1.23029866,111220.0,111210.0,0.04329082]
[1752096762185,1.23029866,111220.0,111210.0,0.03922451]
[1752096762387,1.23029866,111220.0,111210.0,0.04329264]
[1752096764598,1.23029866,111220.0,111210.0,0.02099264]
[1752096765204,1.23029866,111220.0,111210.0,0.04399264]
[1752096767022,1.23029866,111220.0,111210.0,0.04399457]